lending/lending_fUSD_20250122
["ID","MTS","AMOUNT","RATE_DAILY","PERIOD"]
[349921736,1737504646043,-500.0,0.00021068,2]
[349921738,1737504646052,-500.0,0.00021068,2]
[349921740,1737504646062,-500.0,0.00021068,2]
[349921742,1737504646071,-500.0,0.00021068,2]
[349921744,1737504646083,-500.0,0.00021068,2]
[349921746,1737504646092,-500.0,0.00021068,2]
[349921748,1737504646102,-500.0,0.00021068,2]
[349921750,1737504646111,-500.0,0.00021068,2]
[349921752,1737504646120,-500.0,0.00021068,2]
[349921754,1737504646129,-500.0,0.00021068,2]
[349921756,1737504646138,-500.0,0.00021068,2]
[349921758,1737504646147,-500.0,0.00021068,2]
[349921760,1737504646156,-500.0,0.00021068,2]
[349921762,1737504646167,-500.0,0.00021068,2]
[349921764,1737504646177,-500.0,0.00021068,2]
[349921766,1737504646186,-500.0,0.00021068,2]
[349921768,1737504646195,-289.06380984,0.00021068,2]
[349921770,1737504646205,-294.12346961,0.00021068,2]
[349921772,1737504646214,-500.0,0.00021068,2]
[349921774,1737504646224,-500.0,0.00021068,2]
[349921776,1737504646233,-500.0,0.00021068,2]
[349921778,1737504646243,-500.0,0.00021068,2]
[349921780,1737504646252,-500.0,0.00021068,2]
[349921782,1737504646261,-500.0,0.00021068,2]
[349921784,1737504646270,-500.0,0.00021068,2]
[349921786,1737504646279,-500.0,0.00021068,2]
[349921788,1737504646288,-500.0,0.00021068,2]
[349921790,1737504646297,-252.6,0.00021068,2]
[349921792,1737504646306,-500.0,0.00021068,2]
[349921794,1737504646316,-500.0,0.00021068,2]
[349921795,1737504646325,-500.0,0.00021068,2]
[349921797,1737504646336,-264.2921367,0.00021068,2]
[349921799,1737504646345,-500.0,0.00021068,2]
[349921801,1737504646354,-154.37869016,0.00021068,2]
[349921803,1737504646364,-500.0,0.00021068,2]
[349921805,1737504646373,-500.0,0.00021068,2]
[349921807,1737504646383,-500.0,0.00021068,2]
[349921809,1737504646392,-500.0,0.00021068,2]
[349921811,1737504646401,-500.0,0.00021068,2]
[349921813,1737504646411,-500.0,0.00021068,2]
[349921815,1737504646426,-500.0,0.00021068,2]
[349921817,1737504646435,-500.0,0.00021068,2]
[349921819,1737504646444,-500.0,0.00021068,2]
[349921821,1737504646454,-500.0,0.00021068,2]
[349921823,1737504646464,-637.58339286,0.00021068,2]
[349921825,1737504646473,-454.98434993,0.00021068,2]
[349921827,1737504646482,-500.0,0.00021068,2]
[349921828,1737504646492,-500.0,0.00021068,2]
[349921829,1737504646500,-500.0,0.00021068,2]
[349921830,1737504646509,-500.0,0.00021068,2]
[349921831,1737504646519,-500.0,0.00021068,2]
[349921832,1737504646528,-500.0,0.00021068,2]
[349921833,1737504646537,-500.0,0.00021068,2]
[349921834,1737504646546,-500.0,0.00021068,2]
[349921835,1737504646555,-500.0,0.00021068,2]
[349921837,1737504646565,-500.0,0.00021068,2]
[349921839,1737504646575,-500.0,0.00021068,2]
[349921842,1737504646587,-500.0,0.00021068,2]
[349921843,1737504646596,-500.0,0.00021068,2]
[349921844,1737504646605,-500.0,0.00021068,2]
[349921845,1737504646615,-503.95448428,0.00021068,2]
[349921846,1737504646625,-500.0,0.00021068,2]
[349921847,1737504646634,-500.0,0.00021068,2]
[349921848,1737504646643,-500.0,0.00021068,2]
[349921849,1737504646653,-500.0,0.00021068,2]
[349921850,1737504646662,-500.0,0.00021068,2]
[349921851,1737504646671,-500.0,0.00021068,2]
[349921852,1737504646681,-500.0,0.00021068,2]
[349921853,1737504646690,-500.0,0.00021068,2]
[349921854,1737504646700,-500.0,0.00021068,2]
[349921855,1737504646710,-500.0,0.00021068,2]
[349921856,1737504646719,-500.0,0.00021068,2]
[349921857,1737504646729,-500.0,0.00021068,2]
[349921858,1737504646738,-500.0,0.00021068,2]
[349921859,1737504646747,-500.0,0.00021068,2]
[349921860,1737504646756,-500.0,0.00021068,2]
[349921861,1737504646765,-500.0,0.00021068,2]
[349921862,1737504646774,-500.0,0.00021068,2]
[349921863,1737504646784,-500.0,0.00021068,2]
[349921864,1737504646793,-500.0,0.00021068,2]
[349921865,1737504646802,-673.43,0.00021068,2]
[349921866,1737504646812,-500.0,0.00021068,2]
[349921867,1737504646822,-500.0,0.00021068,2]
[349921868,1737504646834,-500.0,0.00021068,2]
[349921869,1737504646843,-500.0,0.00021068,2]
[349921870,1737504646853,-330.51487271,0.00021068,2]
[349921871,1737504646863,-728.35,0.00021068,2]
[349921872,1737504646878,-500.0,0.00021068,2]
[349921873,1737504646887,-1070.4,0.00021068,2]
[349921874,1737504646897,-500.0,0.00021068,2]
[349921875,1737504646908,-500.0,0.00021068,2]
[349921876,1737504646919,-500.0,0.00021068,2]
[349921877,1737504646930,-500.0,0.00021068,2]
[349921878,1737504646940,-500.0,0.00021068,2]
[349921879,1737504646954,-500.0,0.00021068,2]
[349921880,1737504646964,-500.0,0.00021068,2]
[349921881,1737504646975,-500.0,0.00021068,2]
[349921882,1737504646984,-568.96,0.00021068,2]
[349921883,1737504646994,-692.01,0.00021068,2]
[349921884,1737504647004,-500.0,0.00021068,2]
[349921885,1737504647014,-500.0,0.00021068,2]
[349921886,1737504647024,-1528.78,0.00021068,2]
[349921887,1737504647033,-500.0,0.00021068,2]
[349921888,1737504647192,-500.0,0.00021068,2]
[349921889,1737504647202,-826.78,0.00021068,2]
[349921890,1737504647212,-500.0,0.00021068,2]
[349921891,1737504647222,-500.0,0.00021068,2]
[349921892,1737504647231,-763.43,0.00021068,2]
[349921893,1737504647241,-500.0,0.00021068,2]
[349921895,1737504647251,-500.0,0.00021068,2]
[349921897,1737504647261,-903.81,0.00021068,2]
[349921899,1737504647270,-500.0,0.00021068,2]
[349921901,1737504647280,-763.1,0.00021068,2]
[349921903,1737504647290,-544.4,0.00021068,2]
[349921905,1737504647300,-1627.1,0.00021068,2]
[349921907,1737504647309,-772.93,0.00021068,2]
[349921909,1737504647318,-2569.74,0.00021068,2]
[349921911,1737504647328,-500.0,0.00021068,2]
[349921913,1737504647341,-500.0,0.00021068,2]
[349921915,1737504647350,-683.72,0.00021068,2]
[349921917,1737504647360,-500.0,0.00021068,2]
[349921919,1737504647370,-720.19,0.00021068,2]
[349921921,1737504647379,-500.0,0.00021068,2]
[349921923,1737504647389,-500.0,0.00021068,2]
[349921925,1737504647399,-500.0,0.00021068,2]
[349921926,1737504647408,-500.0,0.00021068,2]
[349921928,1737504647417,-500.0,0.00021068,2]
[349921930,1737504647427,-500.0,0.00021068,2]
[349921931,1737504647436,-500.0,0.00021068,2]
[349921932,1737504647446,-3143.78,0.00021068,2]
[349921933,1737504647455,-500.0,0.00021068,2]
[349921934,1737504647465,-2631.04,0.00021068,2]
[349921935,1737504647475,-500.0,0.00021068,2]
[349921936,1737504647484,-500.0,0.00021068,2]
[349921937,1737504647494,-500.0,0.00021068,2]
[349921939,1737504647503,-500.0,0.00021068,2]
[349921941,1737504647514,-697.17,0.00021068,2]
[349921943,1737504647524,-500.0,0.00021068,2]
[349921945,1737504647534,-631.92,0.00021068,2]
[349921947,1737504647543,-500.0,0.00021068,2]
[349921949,1737504647553,-500.0,0.00021068,2]
[349921951,1737504647563,-512.55,0.00021068,2]
[349921953,1737504647572,-998.95,0.00021068,2]
[349921955,1737504647583,-500.0,0.00021068,2]
[349921957,1737504647592,-954.52,0.00021068,2]
[349921959,1737504647601,-500.0,0.00021068,2]
[349921961,1737504647611,-1036.58,0.00021068,2]
[349921963,1737504647620,-500.0,0.00021068,2]
[349921965,1737504647629,-500.0,0.00021068,2]
[349921967,1737504647639,-678.04,0.00021068,2]
[349921969,1737504647649,-500.0,0.00021068,2]
[349921971,1737504647658,-500.0,0.00021068,2]
[349921973,1737504647669,-984.22,0.00021068,2]
[349921975,1737504647678,-1521.61,0.00021068,2]
[349921977,1737504647688,-1135.64,0.00021068,2]
[349921979,1737504647697,-500.0,0.00021068,2]
[349921981,1737504647707,-831.37924423,0.00021068,2]
[349921988,1737504647769,-446.95075577,0.00021068,2]
[349921990,1737504647779,-500.0,0.00021068,2]
[349921992,1737504647789,-500.0,0.00021068,2]
[349921994,1737504647800,-2050.0,0.00021068,2]
[349921996,1737504647809,-500.0,0.00021068,2]
[349921998,1737504647819,-500.0,0.00021068,2]
[349922000,1737504647829,-1268.78,0.00021068,2]
[349922002,1737504647839,-500.0,0.00021068,2]
[349922004,1737504647850,-500.0,0.00021068,2]
[349922006,1737504647858,-500.0,0.00021068,2]
[349922008,1737504647869,-500.0,0.00021068,2]
[349922010,1737504647878,-909.8,0.00021068,2]
[349922012,1737504647891,-500.0,0.00021068,2]
[349922014,1737504647900,-500.0,0.00021068,2]
[349922016,1737504647909,-500.0,0.00021068,2]
[349922018,1737504647920,-564.29763418,0.00021068,2]
[349922020,1737504647930,-560.23,0.00021068,2]
[349922022,1737504647939,-762.14,0.00021068,2]
[349922024,1737504647948,-500.0,0.00021068,2]
[349922026,1737504647959,-500.0,0.00021068,2]
[349922028,1737504647968,-695.1,0.00021068,2]
[349922030,1737504647978,-506.03841315,0.00021068,2]
[349922032,1737504647987,-651.03,0.00021068,2]
[349922034,1737504647997,-500.0,0.00021068,2]
[349922036,1737504648006,-649.57404888,0.00021068,2]
[349922038,1737504648016,-2802.04,0.00021068,2]
[349922040,1737504648026,-487.6027606,0.00021068,2]
[349922043,1737504648038,-12.3972394,0.00021068,2]
[349922045,1737504648048,-808.81,0.00021068,2]
[349922046,1737504648058,-494.33878849,0.00021068,2]
[349922049,1737504648068,-500.0,0.00021068,2]
[349922051,1737504648077,-500.0,0.00021068,2]
[349922053,1737504648089,-790.84,0.00021068,2]
[349922055,1737504648099,-1579.52,0.00021068,2]
[349922057,1737504648110,-500.0,0.00021068,2]
[349922059,1737504648120,-500.0,0.00021068,2]
[349922061,1737504648129,-500.0,0.00021068,2]
[349922063,1737504648138,-500.0,0.00021068,2]
[349922065,1737504648149,-500.0,0.00021068,2]
[349922067,1737504648159,-500.0,0.00021068,2]
[349922069,1737504648168,-500.0,0.00021068,2]
[349922071,1737504648177,-1000.0,0.00021068,2]
[349922073,1737504648187,-526.52,0.00021068,2]
[349922075,1737504648196,-500.0,0.00021068,2]
[349922077,1737504648206,-500.0,0.00021068,2]
[349922079,1737504648216,-689.23,0.00021068,2]
[349922081,1737504648226,-500.0,0.00021068,2]
[349922083,1737504648236,-500.0,0.00021068,2]
[349922085,1737504648246,-2836.04,0.00021068,2]
[349922087,1737504648256,-500.0,0.00021068,2]
[349922089,1737504648266,-500.0,0.00021068,2]
[349922091,1737504648276,-764.99,0.00021068,2]
[349922093,1737504648286,-948.79,0.00021068,2]
[349922095,1737504648297,-500.0,0.00021068,2]
[349922097,1737504648306,-500.0,0.00021068,2]
[349922099,1737504648316,-500.0,0.00021068,2]
[349922101,1737504648326,-500.0,0.00021068,2]
[349922103,1737504648336,-500.0,0.00021068,2]
[349922105,1737504648345,-500.0,0.00021068,2]
[349922107,1737504648356,-839.9,0.00021068,2]
[349922109,1737504648366,-649.71,0.00021068,2]
[349922111,1737504648376,-518.17,0.00021068,2]
[349922113,1737504648388,-1218.03,0.00021068,2]
[349922115,1737504648399,-500.0,0.00021068,2]
[349922117,1737504648410,-500.0,0.00021068,2]
[349922119,1737504648422,-500.0,0.00021068,2]
[349922121,1737504648433,-500.0,0.00021068,2]
[349922123,1737504648443,-500.0,0.00021068,2]
[349922125,1737504648454,-500.0,0.00021068,2]
[349922127,1737504648465,-500.0,0.00021068,2]
[349922129,1737504648476,-500.0,0.00021068,2]
[349922130,1737504648486,-500.0,0.00021068,2]
[349922131,1737504648496,-500.0,0.00021068,2]
[349922132,1737504648506,-1127.48,0.00021068,2]
[349922133,1737504648516,-500.0,0.00021068,2]
[349922134,1737504648527,-391.14800143,0.00021068,2]
[349922135,1737504648537,-500.0,0.00021068,2]
[349922137,1737504648546,-500.0,0.00021068,2]
[349922139,1737504648557,-2744.16,0.00021068,2]
[349922141,1737504648568,-694.71,0.00021068,2]
[349922143,1737504648578,-500.0,0.00021069,2]
[349922145,1737504648590,-500.0,0.00021069,2]
[349922147,1737504648600,-500.0,0.00021069,2]
[349922149,1737504648611,-500.0,0.00021069,2]
[349922151,1737504648622,-500.0,0.00021069,2]
[349922153,1737504648632,-52.5884894,0.00021069,2]
[349922174,1737504649041,-500.0,0.00020794,2]
[349922175,1737504649056,-222.1506333,0.00020794,2]
[349922176,1737504649108,-277.8493667,0.00020794,2]
[349922177,1737504649124,-500.0,0.00021068,2]
[349922178,1737504649138,-447.4115106,0.00021069,2]
[349922179,1737504649151,-500.0,0.00021069,2]
[349922180,1737504649163,-500.0,0.00021069,2]
[349922181,1737504649175,-500.0,0.00021069,2]
[349922182,1737504649188,-500.0,0.00021069,2]
[349922183,1737504649205,-124.04924941,0.00021069,2]
[349922184,1737504649219,-375.95075059,0.00021069,2]
[349922185,1737504649231,-500.0,0.00021069,2]
[349922186,1737504649242,-500.0,0.00021069,2]
[349922187,1737504649255,-500.0,0.00021069,2]
[349922188,1737504649271,-500.0,0.00021069,2]
[349922189,1737504649283,-500.0,0.00021069,2]
[349922190,1737504649294,-500.0,0.00021069,2]
[349922191,1737504649306,-500.0,0.00021069,2]
[349922192,1737504649320,-337.8461294,0.00021069,2]
[349922193,1737504649342,-162.1538706,0.00021069,2]
[349922194,1737504649355,-199.7911279,0.00021069,2]
[349922195,1737504649372,-300.2088721,0.00021069,2]
[349922196,1737504649385,-82.33746662,0.00021069,2]
[349922197,1737504649401,-417.66253338,0.00021069,2]
[349922198,1737504649414,-494.39034924,0.00021069,2]
[349922199,1737504649428,-5.60965076,0.00021069,2]
[349922200,1737504649441,-584.18100027,0.00021069,2]
[349922201,1737504649453,-500.0,0.00021069,2]
[349922202,1737504649466,-500.0,0.00021069,2]
[349922203,1737504649478,-500.0,0.00021069,2]
[349922204,1737504649491,-500.0,0.00021069,2]
[349922205,1737504649504,-500.0,0.00021069,2]
[349922206,1737504649517,-500.0,0.00021069,2]
[349922207,1737504649529,-500.0,0.00021069,2]
[349922208,1737504649542,-500.0,0.00021069,2]
[349922209,1737504649554,-500.0,0.00021069,2]
[349922210,1737504649570,-500.0,0.00021069,2]
[349922211,1737504649584,-500.0,0.00021069,2]
[349922212,1737504649595,-500.0,0.00021069,2]
[349922213,1737504649607,-210.75,0.00021069,2]
[349922214,1737504649619,-268.13557863,0.00021069,2]
[349922215,1737504649630,-500.0,0.00021069,2]
[349922216,1737504649643,-500.0,0.00021069,2]
[349922217,1737504649656,-500.0,0.00021069,2]
[349922218,1737504649668,-500.0,0.00021069,2]
[349922219,1737504649679,-500.0,0.00021069,2]
[349922220,1737504649691,-500.0,0.00021069,2]
[349922221,1737504649703,-500.0,0.00021069,2]
[349922222,1737504649714,-500.0,0.00021069,2]
[349922223,1737504649726,-500.0,0.00021069,2]
[349922224,1737504649738,-500.0,0.00021069,2]
[349922225,1737504649749,-500.0,0.00021069,2]
[349922226,1737504649761,-500.0,0.00021069,2]
[349922227,1737504649773,-500.0,0.00021069,2]
[349922228,1737504649784,-500.0,0.00021069,2]
[349922229,1737504649796,-500.0,0.00021069,2]
[349922230,1737504649808,-500.0,0.00021069,2]
[349922231,1737504649820,-500.0,0.00021069,2]
[349922232,1737504649835,-500.0,0.00021069,2]
[349922233,1737504649847,-500.0,0.00021069,2]
[349922234,1737504649859,-500.0,0.00021069,2]
[349922235,1737504649872,-500.0,0.00021069,2]
[349922236,1737504649885,-500.0,0.00021069,2]
[349922237,1737504649897,-500.0,0.00021069,2]
[349922238,1737504649909,-500.0,0.00021069,2]
[349922239,1737504649926,-500.0,0.00021069,2]
[349922240,1737504649939,-500.0,0.00021069,2]
[349922241,1737504649951,-500.0,0.00021069,2]
[349922242,1737504649965,-500.0,0.00021069,2]
[349922243,1737504649978,-500.0,0.00021069,2]
[349922244,1737504649990,-500.0,0.00021069,2]
[349922245,1737504650002,-500.0,0.00021069,2]
[349922246,1737504650016,-500.0,0.00021069,2]
[349922247,1737504650029,-637.3338713,0.00021072,2]
[349922248,1737504650042,-208.65094804,0.00021096,2]
[349922249,1737504650056,-637.3338713,0.00021107,2]
[349922250,1737504650069,-637.3338713,0.00021141,2]
[349922251,1737504650081,-637.3338713,0.00021176,2]
[349922252,1737504650096,-500.0,0.00021178,2]
[349922253,1737504650107,-637.3338713,0.0002121,2]
[349922254,1737504650118,-500.0,0.00021214,2]
[349922255,1737504650129,-208.65094804,0.0002123,2]
[349922256,1737504650140,-174.71650596,0.00021243,2]
[349922257,1737504650150,-500.0,0.00021244,2]
[349922258,1737504650160,-637.3338713,0.00021245,2]
[349922259,1737504650170,-500.0,0.00021245,2]
[349922260,1737504650180,-500.0,0.00021245,2]
[349922261,1737504650190,-522.41,0.00021245,2]
[349922262,1737504650200,-500.0,0.00021245,2]
[349922263,1737504650210,-500.0,0.00021245,2]
[349922264,1737504650220,-500.0,0.00021245,2]
[349922265,1737504650229,-500.0,0.00021245,2]
[349922266,1737504650239,-500.0,0.00021245,2]
[349922267,1737504650250,-500.0,0.00021245,2]
[349922268,1737504650259,-500.0,0.00021245,2]
[349922269,1737504650269,-713.18,0.00021245,2]
[349922270,1737504650279,-283.37216633,0.00021245,2]
[349922271,1737504650289,-628.39749608,0.00021245,2]
[349922272,1737504650300,-500.0,0.00021245,2]
[349922273,1737504650310,-500.0,0.00021245,2]
[349922274,1737504650320,-500.0,0.00021245,2]
[349922275,1737504650330,-500.0,0.00021245,2]
[349922276,1737504650344,-500.0,0.00021245,2]
[349922277,1737504650354,-500.0,0.00021245,2]
[349922278,1737504650364,-500.0,0.00021245,2]
[349922279,1737504650374,-315.78160875,0.00021245,2]
[349922280,1737504650384,-500.0,0.00021245,2]
[349922281,1737504650394,-500.0,0.00021245,2]
[349922282,1737504650404,-500.0,0.00021245,2]
[349922283,1737504650414,-500.0,0.00021245,2]
[349922284,1737504650423,-500.0,0.00021245,2]
[349922285,1737504650433,-500.0,0.00021245,2]
[349922286,1737504650442,-500.0,0.00021245,2]
[349922287,1737504650452,-514.14,0.00021245,2]
[349922288,1737504650462,-500.0,0.00021245,2]
[349922289,1737504650472,-388.74935641,0.00021245,2]
[349922290,1737504650482,-500.0,0.00021245,2]
[349922291,1737504650491,-244.66122671,0.00021245,2]
[349922292,1737504650500,-500.0,0.00021245,2]
[349922293,1737504650510,-500.0,0.00021245,2]
[349922294,1737504650520,-500.0,0.00021245,2]
[349922295,1737504650530,-681.13,0.00021245,2]
[349922296,1737504650540,-500.0,0.00021245,2]
[349922297,1737504650550,-500.0,0.00021245,2]
[349922298,1737504650852,-641.33,0.00021245,2]
[349922299,1737504650876,-526.09288813,0.00021245,2]
[349922300,1737504650897,-500.0,0.00021245,2]
[349922301,1737504650906,-637.3338713,0.00021279,2]
[349922302,1737504650918,-1269.0,0.00021282,2]
[349922303,1737504650927,-2018.0,0.00021282,2]
[349922304,1737504650938,-150.0,0.00021282,2]
[349922305,1737504650948,-636.0,0.00021282,2]
[349922306,1737504650959,-567.0,0.00021282,2]
[349922307,1737504650969,-1864.0,0.00021282,2]
[349922308,1737504650981,-1261.0,0.00021282,2]
[349922309,1737504650992,-2948.0,0.00021282,2]
[349922310,1737504651001,-907.0,0.00021282,2]
[349922311,1737504651011,-781.0,0.00021282,2]
[349922312,1737504651021,-150.0,0.00021282,2]
[349922313,1737504651030,-537.0,0.00021282,2]
[349922314,1737504651040,-3984.0,0.00021282,2]
[349922315,1737504651051,-166.80627001,0.00021297,2]
[349922316,1737504651061,-637.3338713,0.00021314,2]
[349922317,1737504651071,-500.0,0.00021321,2]
[349922318,1737504651081,-1000.0,0.0002133,2]
[349922319,1737504651096,-500.0,0.00021341,2]
[349922320,1737504651105,-1334.93,0.00021341,2]
[349922321,1737504651115,-1608.21,0.00021341,2]
[349922322,1737504651124,-605.9,0.00021341,2]
[349922323,1737504651135,-916.03,0.00021341,2]
[349922324,1737504651144,-500.0,0.00021341,2]
[349922325,1737504651154,-500.0,0.00021341,2]
[349922326,1737504651164,-500.0,0.00021341,2]
[349922327,1737504651174,-676.52,0.00021341,2]
[349922328,1737504651184,-905.88,0.00021341,2]
[349922329,1737504651194,-500.0,0.00021341,2]
[349922330,1737504651204,-1656.12,0.00021341,2]
[349922331,1737504651214,-897.77,0.00021341,2]
[349922332,1737504651223,-500.0,0.00021341,2]
[349922333,1737504651234,-648.7,0.00021341,2]
[349922334,1737504651243,-1854.15,0.00021341,2]
[349922335,1737504651254,-500.0,0.00021341,2]
[349922336,1737504651264,-816.21,0.00021341,2]
[349922337,1737504651275,-500.0,0.00021341,2]
[349922338,1737504651285,-525.1,0.00021341,2]
[349922339,1737504651295,-500.0,0.00021341,2]
[349922340,1737504651306,-175.62,0.00021341,2]
[349922341,1737504651316,-1445.78,0.00021341,2]
[349922342,1737504651326,-1060.79,0.00021341,2]
[349922343,1737504651339,-500.0,0.00021341,2]
[349922344,1737504651349,-500.0,0.00021341,2]
[349922345,1737504651360,-500.0,0.00021341,2]
[349922346,1737504651371,-500.0,0.00021341,2]
[349922347,1737504651381,-782.83,0.00021341,2]
[349922348,1737504651391,-910.58,0.00021341,2]
[349922349,1737504651401,-1379.67,0.00021341,2]
[349922350,1737504651411,-722.077815,0.00021342,2]
[349922351,1737504651422,-264.844728,0.00021342,2]
[349922352,1737504651432,-500.0,0.00021342,2]
[349922353,1737504651442,-534.26202646,0.00021342,2]
[349922354,1737504651451,-500.0,0.00021342,2]
[349922355,1737504651461,-500.0,0.00021342,2]
[349922356,1737504651471,-500.0,0.00021342,2]
[349922357,1737504651481,-232.16656209,0.00021342,2]
[349922358,1737504651490,-500.0,0.00021342,2]
[349922359,1737504651500,-500.0,0.00021342,2]
[349922360,1737504651509,-500.0,0.00021342,2]
[349922361,1737504651518,-500.0,0.00021342,2]
[349922362,1737504651528,-543.37,0.00021342,2]
[349922363,1737504651538,-500.0,0.00021342,2]
[349922364,1737504651548,-500.0,0.00021342,2]
[349922365,1737504651559,-500.0,0.00021342,2]
[349922366,1737504651569,-500.0,0.00021342,2]
[349922367,1737504651579,-500.0,0.00021342,2]
[349922368,1737504651589,-764.5,0.00021342,2]
[349922369,1737504651599,-500.0,0.00021342,2]
[349922370,1737504651608,-500.0,0.00021342,2]
[349922371,1737504651618,-154.77771529,0.00021342,2]
[349922372,1737504651627,-500.0,0.00021342,2]
[349922373,1737504651636,-500.0,0.00021342,2]
[349922374,1737504651646,-500.0,0.00021342,2]
[349922375,1737504651655,-500.0,0.00021342,2]
[349922376,1737504651665,-500.0,0.00021342,2]
[349922377,1737504651674,-500.0,0.00021342,2]
[349922378,1737504651684,-500.0,0.00021342,2]
[349922379,1737504651693,-500.0,0.00021342,2]
[349922380,1737504651703,-500.0,0.00021342,2]
[349922381,1737504651714,-547.66339375,0.00021342,2]
[349922382,1737504651725,-500.0,0.00021342,2]
[349922383,1737504651734,-500.0,0.00021342,2]
[349922384,1737504651743,-500.0,0.00021342,2]
[349922385,1737504651753,-500.0,0.00021342,2]
[349922386,1737504651762,-500.0,0.00021342,2]
[349922387,1737504651772,-500.0,0.00021342,2]
[349922388,1737504651781,-500.0,0.00021342,2]
[349922389,1737504651791,-185.62583066,0.00021342,2]
[349922390,1737504651801,-630.42581237,0.00021342,2]
[349922391,1737504651810,-500.0,0.00021342,2]
[349922392,1737504651819,-208.58417455,0.00021342,2]
[349922393,1737504651828,-500.0,0.00021342,2]
[349922394,1737504651841,-291.2,0.00021342,2]
[349922395,1737504651851,-500.0,0.00021342,2]
[349922396,1737504651860,-374.64,0.00021342,2]
[349922397,1737504651870,-500.0,0.00021342,2]
[349922398,1737504651882,-500.0,0.00021342,2]
[349922399,1737504651893,-500.0,0.00021342,2]
[349922400,1737504651903,-508.52169129,0.00021342,2]
[349922401,1737504651912,-500.0,0.00021342,2]
[349922402,1737504651923,-500.0,0.00021342,2]
[349922403,1737504651933,-500.0,0.00021342,2]
[349922404,1737504651944,-500.0,0.00021342,2]
[349922405,1737504651954,-500.0,0.00021342,2]
[349922406,1737504651966,-500.0,0.00021342,2]
[349922407,1737504651976,-500.0,0.00021342,2]
[349922408,1737504651986,-500.0,0.00021342,2]
[349922409,1737504651995,-500.0,0.00021342,2]
[349922410,1737504652005,-500.0,0.00021342,2]
[349922411,1737504652015,-500.0,0.00021342,2]
[349922412,1737504652026,-500.0,0.00021342,2]
[349922413,1737504652035,-500.0,0.00021342,2]
[349922414,1737504652044,-501.8151213,0.00021342,2]
[349922415,1737504652054,-500.0,0.00021342,2]
[349922416,1737504652063,-511.27484688,0.00021342,2]
[349922417,1737504652073,-500.0,0.00021342,2]
[349922418,1737504652082,-500.0,0.00021342,2]
[349922419,1737504652095,-500.0,0.00021342,2]
[349922420,1737504652105,-500.0,0.00021342,2]
[349922421,1737504652114,-500.0,0.00021342,2]
[349922422,1737504652123,-500.0,0.00021342,2]
[349922423,1737504652133,-355.63090411,0.00021342,2]
[349922424,1737504652142,-500.0,0.00021342,2]
[349922425,1737504652152,-511.49300969,0.00021342,2]
[349922426,1737504652161,-500.0,0.00021342,2]
[349922427,1737504652170,-500.0,0.00021342,2]
[349922428,1737504652179,-500.0,0.00021342,2]
[349922429,1737504652188,-500.0,0.00021342,2]
[349922430,1737504652197,-500.0,0.00021342,2]